bitfinex/quotes_BTCUSD_20260307
["timestamp","ask_amount","ask_price","bid_price","bid_amount"]
[1772896369439,0.02310034,67947.0,67938.0,0.07359651]
[1772896373056,0.00040045,67948.0,67938.0,0.07359651]
[1772896373260,0.02310034,67947.0,67938.0,0.07359651]
[1772896373978,0.02310034,67947.0,67939.0,0.00148]
[1772896374342,0.02310034,67947.0,67938.0,0.07359651]
[1772896374704,0.02310034,67947.0,67939.0,0.00148]
[1772896374841,0.02310034,67947.0,67938.0,0.07359651]
[1772896375040,0.07358753,67947.0,67939.0,0.00148]
[1772896375245,0.02310034,67946.0,67939.0,0.00148]
[1772896375446,0.02310034,67946.0,67940.0,0.00148]
[1772896375849,0.02310034,67946.0,67938.0,0.07359651]
[1772896376051,0.02332035,67960.0,67940.0,0.03913595]
[1772896376252,0.02310034,67956.0,67941.0,0.00148]
[1772896376451,0.04144072,67953.0,67941.0,0.00148]
[1772896376694,0.04144072,67952.0,67941.0,0.00148]
[1772896376871,0.02310034,67951.0,67941.0,0.00148]
[1772896379469,0.02310034,67951.0,67942.0,0.07359218]
[1772896380195,0.04144072,67948.0,67937.0,0.0002127]
[1772896380418,0.02310034,67946.0,67938.0,0.00148]
[1772896380962,0.04144072,67947.0,67938.0,0.00148]
[1772896381678,0.07358784,67946.0,67938.0,0.00148]
[1772896381884,0.07358784,67946.0,67937.0,0.0002127]
[1772896382097,0.07358784,67946.0,67938.0,0.00148]
[1772896382514,0.07358784,67946.0,67937.0,0.00148]
[1772896382728,0.03735379,67945.0,67936.0,0.00148]
[1772896383624,0.07359001,67944.0,67936.0,0.00148]
[1772896383787,0.07359001,67944.0,67935.0,0.05447169]
[1772896383988,0.07359001,67944.0,67937.0,0.00148]
[1772896384815,0.07359001,67944.0,67934.0,0.07360066]
[1772896385017,0.07359001,67944.0,67937.0,0.00148]
[1772896387117,0.1109438,67944.0,67930.0,0.0737385]
[1772896387321,0.1109438,67944.0,67935.0,0.00148]
[1772896387719,0.07359001,67944.0,67930.0,0.0737385]
[1772896387922,0.03735379,67943.0,67935.0,0.00148]
[1772896388289,0.07359218,67942.0,67935.0,0.00148]
[1772896388576,0.11094597,67943.0,67935.0,0.00148]
[1772896388577,0.07359218,67943.0,67935.0,0.00148]
[1772896388878,0.07359218,67943.0,67935.0,0.05334273]
[1772896389263,0.07359218,67943.0,67935.0,0.00168]
[1772896390976,0.07358784,67946.0,67935.0,0.00168]
[1772896396618,0.07358784,67946.0,67936.0,0.05186273]
[1772896396814,0.07358358,67950.0,67939.0,0.03628709]
[1772896397086,0.07358358,67950.0,67942.0,0.05186273]
[1772896397258,0.07358358,67950.0,67944.0,0.05186273]
[1772896397559,0.0738045,67951.0,67944.0,0.05186273]
[1772896398388,0.00022001,67951.0,67944.0,0.05186273]
[1772896398583,0.00022001,67947.0,67946.0,0.05186273]
[1772896398804,0.07357825,67955.0,67947.0,0.05186273]
[1772896399143,0.00022001,67954.0,67947.0,0.05186273]
[1772896399542,0.00022001,67954.0,67947.0,0.07358643]
[1772896399848,0.00022001,67960.0,67949.0,0.05186273]
[1772896400048,0.00022001,67961.0,67953.0,0.05186273]
[1772896400293,0.00022001,67964.0,67956.0,0.03628709]
[1772896400488,0.00022001,67964.0,67957.0,0.05334273]
[1772896401599,0.013043,67965.0,67957.0,0.05334273]
[1772896401978,0.07356373,67969.0,67958.0,0.03628709]
[1772896402309,0.07356373,67969.0,67959.0,0.05186273]
[1772896405355,0.07356373,67969.0,67959.0,0.03628709]
[1772896405550,0.07356373,67969.0,67960.0,0.05186273]
[1772896406823,0.07378374,67969.0,67960.0,0.05186273]
[1772896411942,0.07378374,67969.0,67957.0,0.0750556]
[1772896412163,0.07378374,67969.0,67957.0,0.07505593]
[1772896412366,0.03638165,67968.0,67957.0,0.00148]
[1772896412566,0.03638165,67968.0,67956.0,9.42e-05]
[1772896412766,0.03638165,67968.0,67958.0,0.00148]
[1772896413007,0.07356511,67967.0,67958.0,0.00148]
[1772896418552,0.07953204,67970.0,67960.0,0.05186273]
[1772896419111,0.07953204,67970.0,67948.0,0.12544831]
[1772896419112,0.03786165,67969.0,67948.0,0.12544831]
[1772896419313,0.03638165,67962.0,67951.0,0.00148]
[1772896419729,0.03638165,67962.0,67958.0,0.0002]
[1772896420133,0.03638165,67962.0,67951.0,0.00148]
[1772896420298,0.04329518,67960.0,67949.0,0.00148]
[1772896420514,0.03638165,67957.0,67945.0,0.0001479]
[1772896420755,0.03786165,67957.0,67945.0,0.0001479]
[1772896421157,0.03786165,67957.0,67944.0,0.00168]
[1772896421158,0.03786165,67957.0,67944.0,0.0002]
[1772896421339,0.03786165,67957.0,67944.0,0.00168]
[1772896422610,0.03638165,67955.0,67944.0,0.0002]
[1772896422820,0.03638165,67955.0,67944.0,0.00168]
[1772896423023,0.03638165,67955.0,67944.0,0.0002]
[1772896423226,0.03638165,67955.0,67944.0,0.00168]
[1772896423991,0.03638165,67955.0,67944.0,0.0002]
[1772896424213,0.03638165,67955.0,67944.0,0.00168]
[1772896424622,0.10996083,67954.0,67944.0,0.0002]
[1772896429341,0.03638165,67953.0,67944.0,0.0002]
[1772896431517,0.07358135,67952.0,67944.0,0.0002]
[1772896439994,0.07358135,67952.0,67944.0,0.00168]
[1772896442190,0.10517444,67952.0,67944.0,0.0002]
[1772896444569,0.07358135,67952.0,67944.0,0.0002]
[1772896444854,0.07358135,67952.0,67944.0,0.05206273]
[1772896448203,0.03159309,67951.0,67943.0,0.00148]
[1772896448789,0.07358135,67952.0,67943.0,0.00148]
[1772896452107,0.03159309,67951.0,67943.0,0.00148]
[1772896452882,0.07358135,67952.0,67943.0,0.00148]
[1772896453101,0.07358135,67952.0,67945.0,0.05186273]
[1772896454328,0.07380136,67952.0,67945.0,0.05186273]
[1772896457936,0.03159309,67951.0,67943.0,0.0002]
[1772896458134,0.03159309,67951.0,67941.0,0.00148]
[1772896458537,0.03159309,67950.0,67940.0,0.00148]
[1772896459143,0.03159309,67950.0,67939.0,0.00148]
[1772896460155,0.03159309,67948.0,67938.0,0.00148]
[1772896462243,0.03159309,67948.0,67932.0,0.07360279]
[1772896462244,0.03159309,67946.0,67933.0,0.000167]
[1772896462460,0.03159309,67946.0,67933.0,0.001647]
[1772896462666,0.07358676,67947.0,67934.0,0.05186273]
[1772896463945,0.07358676,67947.0,67938.0,0.0002]
[1772896464492,0.07358676,67948.0,67938.0,0.0002]
[1772896464698,0.03159309,67947.0,67933.0,0.001647]
[1772896466710,0.03159309,67945.0,67933.0,0.001647]
[1772896469279,0.07359001,67944.0,67933.0,0.001647]
[1772896469495,11.55391935,68127.0,67933.0,0.001647]
[1772896469496,0.00022001,67952.0,67933.0,0.07524871]
[1772896469699,0.07380244,67952.0,67938.0,0.05186273]
[1772896469916,0.07380244,67952.0,67940.0,0.05186273]
[1772896472097,0.10539553,67952.0,67940.0,0.05186273]
[1772896476053,0.07380244,67952.0,67940.0,0.05186273]
[1772896476359,0.02853086,67951.0,67940.0,0.05186273]
[1772896478048,0.07358351,67950.0,67940.0,0.05186273]
[1772896479066,0.02853086,67949.0,67939.0,0.00148]
[1772896480517,0.07358568,67948.0,67939.0,0.00063115]
[1772896480725,0.07358568,67948.0,67939.0,0.00046141]
[1772896480924,0.02853086,67947.0,67933.0,0.001847]
[1772896481520,0.02853086,67947.0,67933.0,0.000367]
[1772896481726,0.03001086,67947.0,67934.0,0.00148]
[1772896482374,0.03001086,67947.0,67933.0,0.000367]
[1772896482375,0.04332538,67944.0,67933.0,0.000367]
[1772896482575,0.02853086,67941.0,67930.0,0.01168]
[1772896483129,0.02853086,67940.0,67930.0,0.0102]
[1772896483330,0.01853086,67940.0,67930.0,0.0002]
[1772896484635,0.07359543,67939.0,67930.0,0.0002]
[1772896487081,0.07359543,67939.0,67931.0,0.02613137]
[1772896489205,0.11429185,67939.0,67931.0,0.0002]
[1772896490104,0.11429185,67939.0,67930.0,0.0002]
[1772896490105,0.04069642,67938.0,67930.0,0.0002]
[1772896490674,0.07359543,67939.0,67928.0,0.0002]
[1772896490675,0.04069642,67936.0,67928.0,0.0002]
[1772896490908,0.07359543,67939.0,67926.0,0.0003238]
[1772896490909,0.04069642,67934.0,67926.0,0.0003238]
[1772896491166,0.04069329,67932.0,67925.0,0.0004]
[1772896493461,0.1142935,67931.0,67925.0,0.0004]
[1772896494140,0.04068941,67930.0,67925.0,0.0004]
[1772896495362,0.07360626,67929.0,67925.0,0.0004]
[1772896495694,0.04068416,67928.0,67925.0,0.0004]
[1772896496574,0.04068416,67928.0,67921.0,0.0002]
[1772896496797,0.04068416,67928.0,67922.0,0.00148]
[1772896498194,0.07360843,67927.0,67922.0,0.00148]
[1772896499205,0.07360843,67927.0,67922.0,0.00168]
[1772896499774,0.07360843,67927.0,67922.0,0.0002]
[1772896500220,0.07360843,67928.0,67922.0,0.0002]
[1772896501237,0.11427724,67928.0,67922.0,0.0002]
[1772896502132,0.02401029,67928.0,67921.0,0.0002]
[1772896502284,0.04066881,67927.0,67921.0,0.0002]
[1772896503108,0.02401029,67926.0,67917.0,0.00148]
[1772896503313,0.04068204,67925.0,67917.0,0.00148]
[1772896503489,0.04068204,67925.0,67911.0,0.07362561]
[1772896503690,0.04068204,67925.0,67916.0,0.00148]
[1772896503960,0.07359543,67939.0,67925.0,0.02445836]
[1772896504159,0.07507543,67939.0,67926.0,0.07372641]
[1772896504572,0.07359543,67939.0,67926.0,0.07360951]
[1772896504712,0.07359543,67939.0,67928.0,0.00027067]
[1772896505231,0.07359543,67939.0,67927.0,0.02445836]
[1772896505791,0.07359543,67941.0,67927.0,0.00040045]
[1772896506008,0.07359218,67942.0,67928.0,0.02445836]
[1772896506156,0.07359218,67942.0,67929.0,0.07360626]
[1772896507174,0.00022001,67939.0,67929.0,0.07360626]
[1772896507586,0.00022001,67939.0,67933.0,0.00015]
[1772896507843,0.00022001,67939.0,67933.0,0.00163]
[1772896508283,0.07381584,67939.0,67933.0,0.00163]
[1772896511347,0.07359262,67942.0,67933.0,0.07523155]
[1772896512759,0.005905,67943.0,67933.0,0.07523155]
[1772896513208,0.07949613,67943.0,67933.0,0.07523155]
[1772896513998,0.00022001,67939.0,67933.0,0.07523155]
[1772896516392,0.005905,67943.0,67933.0,0.07523155]
[1772896521538,0.00612501,67943.0,67933.0,0.07523155]
[1772896526218,0.00062001,67950.0,67933.0,0.07523155]
[1772896526377,0.00022001,67953.0,67933.0,0.07523155]
[1772896526876,0.00022001,67957.0,67934.0,0.9473736]
[1772896527422,0.00022001,67961.0,67934.0,0.9473736]
[1772896527622,0.02670949,67967.0,67934.0,0.9473736]
[1772896527623,8.9e-05,67965.0,67934.0,0.9474656]
[1772896527996,8.9e-05,67965.0,67934.0,0.98899166]
[1772896528168,0.00022001,67943.0,67936.0,0.07359868]
[1772896528381,8.9e-05,67965.0,67943.0,0.00022001]
[1772896528590,8.9e-05,67965.0,67944.0,0.00148]
[1772896528826,0.00022001,67968.0,67944.0,0.00148]
[1772896528827,0.00022001,67968.0,67945.0,0.98689966]
[1772896529024,0.00022001,67974.0,67945.0,0.98689966]
[1772896529025,1e-08,67971.0,67945.0,0.98689966]
[1772896529227,1e-08,67971.0,67945.0,1.02658962]
[1772896529400,1e-08,67971.0,67946.0,0.03968996]
[1772896529609,1e-08,67971.0,67947.0,0.03952606]
[1772896529839,1e-08,67971.0,67948.0,0.03968996]
[1772896530038,1e-08,67971.0,67949.0,0.03952606]
[1772896530234,1e-08,67971.0,67952.0,0.07358135]
[1772896530435,1e-08,67971.0,67953.0,0.03952606]
[1772896530590,1e-08,67971.0,67953.0,0.07921602]
[1772896530988,0.00012005,67971.0,67953.0,0.07921602]
[1772896531197,0.00022001,67974.0,67953.0,0.07921602]
[1772896531520,0.00022001,67974.0,67953.0,0.07933606]
[1772896532070,0.07377794,67974.0,67953.0,0.07933606]
[1772896532640,0.07377794,67974.0,67954.0,0.07357918]
[1772896532837,0.07377794,67974.0,67955.0,0.03952606]
[1772896533152,0.07377794,67974.0,67954.0,0.07357918]
[1772896533309,0.07377794,67974.0,67955.0,0.04100606]
[1772896534140,0.07377794,67974.0,67955.0,0.001]
[1772896534336,0.07377794,67974.0,67956.0,0.00148]
[1772896535062,0.07377794,67974.0,67957.0,0.07357593]
[1772896535266,0.07377794,67974.0,67958.0,0.00148]
[1772896536248,0.07377794,67974.0,67957.0,0.07357593]
[1772896536480,0.07377794,67974.0,67958.0,0.00148]
[1772896537403,0.07377794,67974.0,67959.0,0.07357377]
[1772896537808,0.07377779,67974.0,67960.0,0.00148]
[1772896539483,0.07377779,67974.0,67961.0,0.0735716]
[1772896543353,0.05333874,67974.0,67961.0,0.0735716]
[1772896547953,0.07989823,67974.0,67961.0,0.0735716]
[1772896549652,0.08011824,67974.0,67961.0,0.0735716]
[1772896551802,0.02655949,67973.0,67961.0,0.0735716]
[1772896557042,0.02655949,67973.0,67962.0,0.03677437]
[1772896557844,0.02655949,67973.0,67964.0,0.03677437]
[1772896560063,0.07355891,67973.0,67965.0,0.07356727]
[1772896560269,0.02655949,67972.0,67966.0,0.00148]
[1772896560417,0.02507949,67972.0,67966.0,0.00148]
[1772896561447,0.004486,67972.0,67966.0,0.00148]
[1772896562055,0.003006,67972.0,67966.0,0.00148]
[1772896562266,0.001526,67972.0,67967.0,0.07356511]
[1772896562473,0.001526,67972.0,67967.0,0.11015326]
[1772896564065,0.001526,67972.0,67967.0,0.07356511]
[1772896565891,4.6e-05,67972.0,67967.0,0.07356511]
[1772896568499,4.6e-05,67972.0,67967.0,0.1098729]
[1772896570812,0.00026601,67972.0,67967.0,0.1098729]
[1772896573109,0.00026601,67972.0,67968.0,0.00148]
[1772896573557,0.05344989,67974.0,67968.0,0.00148]
[1772896573851,0.07613223,67974.0,67968.0,0.00148]
[1772896574305,0.02268234,67973.0,67968.0,0.00148]
[1772896574955,0.07355919,67973.0,67969.0,0.00148]
[1772896575135,0.07355919,67973.0,67962.0,0.07356835]
[1772896575136,0.02268234,67972.0,67959.0,0.0735732]
[1772896575452,0.02120234,67972.0,67960.0,0.00148]
[1772896575657,0.02120234,67972.0,67961.0,0.00148]
[1772896576065,0.000581,67975.0,67961.0,0.00148]
[1772896576397,0.000581,67975.0,67962.0,0.0359496]
[1772896576574,0.000581,67975.0,67961.0,0.00148]
[1772896576575,0.000581,67975.0,67964.0,0.0359496]
[1772896576792,0.000581,67975.0,67966.0,0.0359496]
[1772896576998,0.000581,67975.0,67969.0,0.07356294]
[1772896577218,0.000581,67975.0,67970.0,0.0359496]
[1772896579074,0.00080101,67975.0,67970.0,0.07356104]
[1772896579300,0.00080101,67975.0,67971.0,0.03627123]
[1772896580310,0.07377291,67979.0,67971.0,0.03627123]
[1772896580311,0.00022001,67979.0,67971.0,0.03627123]
[1772896580956,0.07377259,67979.0,67971.0,0.03627123]
[1772896581352,0.07377259,67979.0,67972.0,0.11676773]
[1772896581523,0.07377259,67979.0,67973.0,0.00148]
[1772896581707,0.07377259,67979.0,67974.0,0.00148]
[1772896581903,0.02268234,67978.0,67974.0,0.00148]
[1772896582501,0.02268234,67978.0,67975.0,0.00096001]
[1772896582816,0.02268234,67978.0,67975.0,0.00044001]
[1772896583237,0.07377259,67979.0,67975.0,0.00044001]
[1772896586891,0.09645493,67979.0,67975.0,0.00044001]
[1772896588117,0.07377259,67979.0,67975.0,0.00044001]
[1772896593154,0.07377259,67979.0,67976.0,0.00148]
[1772896596340,0.07377259,67979.0,67977.0,0.06375417]
[1772896596638,0.07377259,67979.0,67976.0,0.00148]
[1772896596838,0.07377259,67979.0,67976.0,0.06523417]
[1772896597038,0.07377259,67979.0,67976.0,0.00148]
[1772896600588,0.05322196,67979.0,67976.0,0.00148]
[1772896601668,0.02055174,67978.0,67976.0,0.00148]
[1772896603569,0.07355429,67977.0,67976.0,0.00148]
[1772896603914,0.00022001,67981.0,67976.0,0.00148]
[1772896603915,0.00022001,67989.0,67979.0,0.0636026]
[1772896604070,0.07353923,67991.0,67981.0,0.0636026]
[1772896604275,0.07365927,67991.0,67983.0,0.0636026]
[1772896611663,0.07365927,67991.0,67975.0,0.07355545]
[1772896611865,0.09626417,67991.0,67976.0,0.07503474]
[1772896612034,0.0226049,67990.0,67976.0,0.07503474]
[1772896612417,0.0226049,67990.0,67977.0,0.06365285]
[1772896614026,0.0735413,67989.0,67978.0,0.13720605]
[1772896615869,0.0735413,67989.0,67979.0,0.06365285]
[1772896617556,0.0735413,67989.0,67980.0,0.00148]
[1772896618173,0.0735413,67989.0,67979.0,0.06365285]
[1772896618420,0.0735413,67989.0,67981.0,0.00148]
[1772896620592,0.0735413,67989.0,67981.0,0.00168]
[1772896623381,0.0735413,67989.0,67981.0,0.06814185]
[1772896624959,0.0735413,67989.0,67981.0,0.00168]
[1772896625156,0.02096709,67988.0,67974.0,0.00148]
[1772896625403,0.0735413,67989.0,67961.0,0.06645996]
[1772896625404,0.02096709,67983.0,67961.0,0.06645996]
[1772896625602,0.02096709,67979.0,67961.0,0.06645996]
[1772896625805,0.02096709,67979.0,67968.0,0.00144]
[1772896626403,0.0735532,67978.0,67973.0,0.09]
[1772896626607,0.02096709,67977.0,67973.0,0.09]
[1772896627109,0.02096709,67977.0,67968.0,0.00144]
[1772896628645,0.07355537,67976.0,67968.0,0.00144]
[1772896629294,0.02096709,67975.0,67973.0,0.0002]
[1772896630498,0.07355753,67974.0,67968.0,0.00144]
[1772896635812,0.07355753,67974.0,67968.0,0.00164]
[1772896639021,0.09452246,67976.0,67968.0,0.00164]
[1772896639421,0.09452246,67976.0,67968.0,0.00168]
[1772896639821,0.09452246,67976.0,67968.0,0.0002]
[1772896640029,0.09452246,67976.0,67968.0,0.00168]
[1772896640749,0.09452246,67976.0,67968.0,0.0002]
[1772896640895,0.07355537,67976.0,67968.0,0.00168]
[1772896641095,0.09452246,67976.0,67968.0,0.00168]
[1772896641581,0.09452246,67976.0,67959.0,0.0002]
[1772896641582,0.07355537,67976.0,67959.0,0.0002]
[1772896641802,0.04327929,67970.0,67959.0,0.0002]
[1772896641966,0.02096709,67969.0,67959.0,0.00168]
[1772896642334,0.02096709,67969.0,67960.0,0.00148]
[1772896642834,0.02096709,67969.0,67959.0,0.0002]
[1772896643034,0.07356403,67968.0,67960.0,0.00012004]
[1772896643573,0.02096709,67967.0,67954.0,0.06793996]
[1772896643868,0.02108709,67967.0,67954.0,0.06793996]
[1772896644032,0.02108709,67967.0,67955.0,0.00148]
[1772896644367,0.02108709,67967.0,67956.0,0.00148]
[1772896644665,0.02108709,67967.0,67954.0,0.06645996]
[1772896644825,0.02108709,67967.0,67955.0,0.00148]
[1772896645028,0.02108709,67967.0,67962.0,0.0002]
[1772896645227,0.07356619,67966.0,67962.0,0.0002]
[1772896646652,0.07356619,67966.0,67955.0,0.0002]
[1772896646875,0.07456619,67966.0,67956.0,0.00148]
[1772896647241,0.02096709,67963.0,67956.0,0.00148]
[1772896647431,0.07356835,67964.0,67956.0,0.00148]
[1772896647639,0.00012,67967.0,67957.0,0.00148]
[1772896647850,0.07355753,67975.0,67957.0,0.00148]
[1772896648202,0.07363405,67975.0,67957.0,0.00148]
[1772896648549,0.07363405,67975.0,67959.0,0.02084818]
[1772896648785,0.07363405,67975.0,67961.0,0.02084818]
[1772896649123,0.07363405,67975.0,67964.0,0.06603984]
[1772896649313,0.07363405,67975.0,67966.0,0.06892541]
[1772896650287,0.07363405,67975.0,67966.0,0.06920261]
[1772896650707,0.00022001,67976.0,67966.0,0.06920261]
[1772896650874,0.07377563,67976.0,67966.0,0.06927913]
[1772896651311,0.07377542,67976.0,67968.0,0.06911577]
[1772896652081,0.00022001,67976.0,67968.0,0.06911577]
[1772896652280,0.00022001,67976.0,67968.0,0.06939297]
[1772896653429,0.00022001,67975.0,67969.0,0.07356294]
[1772896653731,0.07355015,67981.0,67970.0,0.06877655]
[1772896653929,0.07355015,67981.0,67972.0,0.06894616]
[1772896654309,0.07355015,67981.0,67972.0,0.06906796]
[1772896658916,0.07355015,67981.0,67973.0,0.13746555]
[1772896659463,0.07355015,67981.0,67973.0,0.13758735]
[1772896661237,0.07377016,67981.0,67973.0,0.13758735]
[1772896661435,0.00022001,67982.0,67974.0,0.06390694]
[1772896662274,0.00022001,67982.0,67974.0,0.06402874]
[1772896663048,0.00022001,67983.0,67976.0,0.06390694]
[1772896663248,0.07354481,67986.0,67978.0,0.06390694]
[1772896664505,0.07354481,67986.0,67978.0,0.06402874]
[1772896667562,0.00022001,67989.0,67980.0,0.06390694]
[1772896667563,0.07376208,67989.0,67980.0,0.06390694]
[1772896667966,0.00022001,67989.0,67980.0,0.06390694]
[1772896668125,0.00022001,67989.0,67980.0,0.06373734]
[1772896668493,0.00022001,67990.0,67980.0,0.06373734]
[1772896669942,0.00022001,67988.0,67982.0,0.06378771]
[1772896670241,0.00022001,67988.0,67984.0,0.06378771]
[1772896672217,0.00022001,67990.0,67986.0,0.06377903]
[1772896676785,0.00022001,67990.0,67986.0,0.1373229]
[1772896677747,0.00022001,67990.0,67986.0,0.07354387]
[1772896677985,0.00022001,67990.0,67987.0,0.13727128]
[1772896678996,0.00022001,67990.0,67987.0,0.07354327]
[1772896679316,0.00022001,67990.0,67988.0,0.06372801]
[1772896679500,0.00022001,67990.0,67987.0,0.07354327]
[1772896683413,0.00022001,67990.0,67985.0,0.13722405]
[1772896685046,0.01872109,67989.0,67985.0,0.03233473]
[1772896685270,0.07376025,67990.0,67985.0,0.07354563]
[1772896685402,0.00022001,67990.0,67985.0,0.05294018]
[1772896686014,0.07376023,67990.0,67979.0,0.0001218]
[1772896686232,0.09248132,67990.0,67981.0,0.00148]
[1772896686516,0.09248132,67990.0,67979.0,0.07367356]
[1772896686873,0.09248132,67990.0,67980.0,0.00168]
[1772896687063,0.09248132,67990.0,67980.0,0.0002]
[1772896687271,0.09248132,67990.0,67980.0,0.00168]
[1772896687671,0.07383673,67990.0,67980.0,0.00168]
[1772896687878,0.01872109,67989.0,67980.0,0.00168]
[1772896689660,0.07354238,67988.0,67980.0,0.0002]
[1772896692628,0.07354238,67988.0,67980.0,3.044e-05]
[1772896695059,0.01872109,67987.0,67976.0,0.00148]
[1772896695655,0.01872109,67987.0,67980.0,0.0002]
[1772896695818,0.07354238,67988.0,67980.0,0.0002]
[1772896700574,0.07454238,67988.0,67980.0,0.0002]
[1772896701651,0.07354238,67988.0,67980.0,0.0002]
[1772896704330,0.07354238,67988.0,67981.0,0.063643]
[1772896710012,0.07386098,67988.0,67981.0,0.063643]
[1772896710708,0.07408099,67988.0,67981.0,0.063643]
[1772896711086,0.07354238,67989.0,67983.0,0.0635729]
[1772896711087,0.04812437,67989.0,67983.0,0.0635729]
[1772896713609,0.04812437,67989.0,67981.0,0.07354911]
[1772896713817,0.04812437,67989.0,67980.0,0.0002]
[1772896714215,0.04812437,67989.0,67980.0,0.07375102]
[1772896714608,0.04812437,67989.0,67980.0,0.0002]
[1772896715012,0.04812437,67989.0,67981.0,0.00148]
[1772896716248,0.04812437,67989.0,67980.0,0.00168]
[1772896716622,0.04812437,67989.0,67980.0,0.0002]
[1772896716950,0.04812437,67989.0,67980.0,0.00168]
[1772896717112,0.04812437,67989.0,67980.0,0.0002]
[1772896717314,0.04812437,67989.0,67980.0,0.00168]
[1772896718404,0.04834438,67989.0,67980.0,0.00168]
[1772896718606,0.04834438,67989.0,67976.0,0.00148]
[1772896718607,0.01919966,67986.0,67976.0,0.00148]
[1772896718853,0.06247728,67986.0,67976.0,0.00148]
[1772896719023,0.01919966,67986.0,67976.0,0.00148]
[1772896721765,0.07354563,67985.0,67974.0,0.00148]
[1772896722593,0.04327762,67984.0,67973.0,0.00168]
[1772896723488,0.04327762,67984.0,67973.0,0.0002]
[1772896723810,0.07354779,67983.0,67973.0,0.0002]
[1772896725131,0.07354779,67983.0,67976.0,0.0002]
[1772896726129,0.07354779,67983.0,67973.0,0.0002]
[1772896726303,0.01919966,67982.0,67969.0,0.0002]
[1772896726507,0.01919966,67979.0,67969.0,0.0002]
[1772896727945,0.0735532,67978.0,67969.0,0.0002]
[1772896728424,0.0735532,67978.0,67968.0,0.0002]
[1772896733419,0.07377321,67978.0,67968.0,0.0002]
[1772896740477,0.07377321,67978.0,67964.0,0.07376824]
[1772896740478,0.01919966,67977.0,67955.0,0.00148]
[1772896740685,0.07389741,67978.0,67953.0,0.0003242]
[1772896740686,0.04327762,67965.0,67953.0,0.04592495]
[1772896740995,0.00148,67967.0,67953.0,0.04282495]
[1772896741796,0.02118629,67967.0,67953.0,7.652e-05]
[1772896742501,0.07356619,67966.0,67953.0,7.652e-05]
[1772896744018,0.07356619,67966.0,67954.0,0.02277578]
[1772896746867,0.0737862,67966.0,67954.0,0.02277578]
[1772896750715,0.04327762,67970.0,67954.0,0.02277578]
[1772896750716,0.00034421,67978.0,67954.0,0.07357834]
[1772896750939,0.05335943,67972.0,67954.0,0.07357834]
[1772896751124,0.03316507,67972.0,67961.0,0.02274442]
[1772896751304,0.03316507,67972.0,67963.0,0.02272721]
[1772896754700,0.00022001,67970.0,67965.0,0.0232176]
[1772896755303,0.07356127,67971.0,67965.0,0.0232176]
[1772896757784,0.00022001,67980.0,67965.0,0.01936891]
[1772896757951,0.01931494,67979.0,67965.0,0.0232176]
[1772896758577,0.01931494,67977.0,67964.0,0.00148]
[1772896759290,0.01931494,67977.0,67963.0,0.09678704]
[1772896759997,0.07377145,67980.0,67964.0,0.01936891]
[1772896760221,0.07377145,67980.0,67965.0,0.0232176]
[1772896761720,0.07377145,67980.0,67965.0,0.0234176]
[1772896762068,0.0735532,67978.0,67967.0,0.0232176]
[1772896763504,0.0735532,67978.0,67968.0,0.07356403]
[1772896763831,0.0735532,67978.0,67969.0,0.0232176]
[1772896765593,0.0735532,67978.0,67971.0,0.0232176]
[1772896770077,0.0735532,67978.0,67968.0,0.07504303]
[1772896770243,0.01931494,67977.0,67967.0,0.00148]
[1772896773329,0.07355537,67976.0,67967.0,0.07504489]
[1772896774884,0.01931494,67977.0,67967.0,0.08665369]
[1772896775018,0.0735532,67978.0,67969.0,0.07356294]
[1772896776049,0.0735532,67978.0,67970.0,0.0116088]
[1772896784155,0.09473483,67978.0,67967.0,0.07504505]
[1772896784355,0.09473483,67978.0,67967.0,0.07504507]
[1772896784580,0.09473483,67978.0,67967.0,0.08665387]
[1772896784803,0.09473483,67978.0,67967.0,0.08517387]
[1772896785181,0.02118163,67977.0,67967.0,0.08517387]
[1772896786065,0.07355537,67976.0,67967.0,0.07356507]
[1772896786273,0.07355537,67976.0,67967.0,0.0116088]
[1772896787974,0.07355537,67976.0,67960.0,0.09]
[1772896787975,0.02118163,67975.0,67960.0,0.09]
[1772896788172,0.02118163,67969.0,67959.0,0.00148]
[1772896788421,0.02118163,67967.0,67958.0,0.0118088]
[1772896788646,0.02118163,67967.0,67958.0,0.0002]
[1772896789300,0.02118163,67967.0,67953.0,0.00021432]
[1772896789641,0.02118163,67967.0,67953.0,0.00041432]
[1772896789838,0.00263233,67968.0,67951.0,0.00168]
[1772896789839,0.02118163,67965.0,67951.0,0.07237235]
[1772896790058,0.02118163,67963.0,67951.0,0.07249235]
[1772896790371,0.02118163,67961.0,67951.0,0.07249235]
[1772896791142,0.04329023,67961.0,67951.0,0.00012]
[1772896791337,0.02118163,67960.0,67948.0,0.0002]
[1772896791542,0.02128167,67960.0,67948.0,0.0002]
[1772896792148,0.07357377,67959.0,67948.0,0.0002]
[1772896792398,0.02118163,67958.0,67948.0,0.0002]
[1772896793257,0.07357377,67959.0,67941.0,0.0116088]
[1772896793258,0.00176953,67957.0,67941.0,0.0116088]
[1772896793457,0.02118163,67951.0,67938.0,0.07393383]
[1772896793650,0.02118163,67951.0,67928.0,0.07360698]
[1772896793651,0.02118163,67949.0,67934.0,0.00148]
[1772896793849,0.00148,67950.0,67934.0,0.00148]
[1772896793850,0.02118163,67943.0,67934.0,0.00148]
[1772896794200,0.02118163,67942.0,67934.0,0.00148]
[1772896794380,0.07359326,67941.0,67931.0,0.07360348]
[1772896794582,0.02118163,67940.0,67930.0,0.0001378]
[1772896794777,0.06431772,67940.0,67930.0,0.0001378]
[1772896795555,0.06431772,67940.0,67923.0,0.0736125]
[1772896795556,0.02118163,67937.0,67923.0,0.0736125]
[1772896795756,0.02118163,67935.0,67923.0,0.0736125]
[1772896796357,0.02118163,67933.0,67922.0,0.07509292]
[1772896796794,0.02118163,67933.0,67922.0,0.07401337]
[1772896796997,0.02118163,67933.0,67922.0,0.07549337]
[1772896797508,0.02118163,67930.0,67916.0,0.07936968]
[1772896797711,0.01231262,67930.0,67916.0,0.00587018]
[1772896797890,0.01231262,67930.0,67912.0,0.07510436]
[1772896797891,0.01083262,67925.0,67912.0,0.07362457]
[1772896798104,0.02118163,67921.0,67912.0,9.427e-05]
[1772896798357,0.04329023,67922.0,67910.0,0.0001503]
[1772896798358,0.02118163,67919.0,67910.0,0.0001503]
[1772896798532,0.02118163,67917.0,67910.0,0.0001503]
[1772896798702,0.02102743,67917.0,67905.0,0.01007713]
[1772896800636,0.07362035,67916.0,67906.0,0.07363119]
[1772896801430,0.02064918,67915.0,67903.0,0.02717405]
[1772896801627,0.02212918,67914.0,67903.0,0.02717405]
[1772896802036,0.00148,67914.0,67904.0,0.01139536]
[1772896802634,0.01939965,67916.0,67905.0,0.07363228]
[1772896802814,0.00148,67914.0,67905.0,0.07363228]